[Event "Early-Titled-Tuesday-Blitz-May-28-2024"]
[Site "Chess.com"]
[Date "2024.05.28"]
[Round "4"]
[White "DrCeltic"]
[Black "ChrisTool2"]
[Result "1-0"]
[WhiteElo "2589"]
[BlackElo "2380"]
[TimeControl "180+1"]
[EndTime "8:38:01 PDT"]
[Termination "DrCeltic won by checkmate"]

1. e4 {[%clk 0:03:00.9]} 1... c5 {[%clk 0:02:50.3]} 2. Nf3 {[%clk 0:03:00.3]}
2... e6 {[%clk 0:02:50.1]} 3. d4 {[%clk 0:03:00.7]} 3... cxd4 {[%clk 0:02:51]}
4. Nxd4 {[%clk 0:03:01.3]} 4... a6 {[%clk 0:02:51.6]} 5. Nc3 {[%clk 0:03:01.6]}
5... Qc7 {[%clk 0:02:51.5]} 6. Bd3 {[%clk 0:02:59.8]} 6... Nf6 {[%clk
0:02:48.5]} 7. f4 {[%clk 0:02:59.5]} 7... d6 {[%clk 0:02:47.1]} 8. Qf3 {[%clk
0:02:58.2]} 8... Nbd7 {[%clk 0:02:45.2]} 9. Be3 {[%clk 0:02:58.5]} 9... Be7
{[%clk 0:02:45.1]} 10. g4 {[%clk 0:02:58.2]} 10... Nc5 {[%clk 0:02:44.2]} 11. g5
{[%clk 0:02:58.3]} 11... Nfd7 {[%clk 0:02:42.3]} 12. O-O-O {[%clk 0:02:57]}
12... Nxd3+ {[%clk 0:02:38.6]} 13. cxd3 {[%clk 0:02:57.1]} 13... b5 {[%clk
0:02:38.3]} 14. Kb1 {[%clk 0:02:57.7]} 14... Bb7 {[%clk 0:02:37.7]} 15. Rc1
{[%clk 0:02:57.6]} 15... Qa5 {[%clk 0:02:24.5]} 16. Nb3 {[%clk 0:02:47.7]} 16...
Qd8 {[%clk 0:02:23.9]} 17. Bd4 {[%clk 0:02:47.2]} 17... e5 {[%clk 0:02:17.9]}
18. Be3 {[%clk 0:02:45.5]} 18... O-O {[%clk 0:02:11.9]} 19. h4 {[%clk
0:02:40.7]} 19... exf4 {[%clk 0:02:12]} 20. Bxf4 {[%clk 0:02:40.7]} 20... Ne5
{[%clk 0:02:11.9]} 21. Qg3 {[%clk 0:02:35.6]} 21... b4 {[%clk 0:02:07.4]} 22.
Nd5 {[%clk 0:02:29.9]} 22... Bxd5 {[%clk 0:02:05.9]} 23. exd5 {[%clk 0:02:30.8]}
23... Ng6 {[%clk 0:02:01.4]} 24. Nd4 {[%clk 0:02:26.3]} 24... Re8 {[%clk
0:01:47.4]} 25. Nc6 {[%clk 0:02:21.9]} 25... Qb6 {[%clk 0:01:45.3]} 26. Bxd6
{[%clk 0:02:18.2]} 26... Bxd6 {[%clk 0:01:40.6]} 27. Qxd6 {[%clk 0:02:17.8]}
27... Qb5 {[%clk 0:01:24.5]} 28. Rc4 {[%clk 0:02:07.1]} 28... b3 {[%clk
0:01:18.9]} 29. h5 {[%clk 0:01:53.8]} 29... bxa2+ {[%clk 0:01:17.6]} 30. Ka1
{[%clk 0:01:52.7]} 30... Nf8 {[%clk 0:01:13.6]} 31. h6 {[%clk 0:01:44.3]} 31...
Re2 {[%clk 0:00:55.8]} 32. Ne7+ {[%clk 0:01:20.9]} 32... Rxe7 {[%clk 0:00:55.4]}
33. Qxe7 {[%clk 0:01:21.8]} 33... Rb8 {[%clk 0:00:51.5]} 34. Qe5 {[%clk
0:01:16.7]} 34... f6 {[%clk 0:00:43.1]} 35. gxf6 {[%clk 0:01:15.3]} 35... g6
{[%clk 0:00:39.1]} 36. f7+ {[%clk 0:01:13.9]} 36... Kxf7 {[%clk 0:00:37.7]} 37.
Rf1+ {[%clk 0:01:13.8]} 37... Kg8 {[%clk 0:00:36.9]} 38. Qg7# {[%clk 0:01:13.2]}
1-0

[Event "Early-Titled-Tuesday-Blitz-May-28-2024"]
[Site "Chess.com"]
[Date "2024.05.28"]
[Round "4"]
[White "platy3"]
[Black "GrotBchess"]
[Result "1-0"]
[WhiteElo "2876"]
[BlackElo "2592"]
[TimeControl "180+1"]
[EndTime "8:38:11 PDT"]
[Termination "platy3 won by resignation"]

1. d4 {[%clk 0:02:54.2]} 1... Nf6 {[%clk 0:02:59.8]} 2. Bf4 {[%clk 0:02:53.4]}
2... e6 {[%clk 0:02:59.9]} 3. e3 {[%clk 0:02:52.7]} 3... d5 {[%clk 0:03:00.3]}
4. Nf3 {[%clk 0:02:52.8]} 4... c5 {[%clk 0:03:00.4]} 5. c3 {[%clk 0:02:52.8]}
5... Nc6 {[%clk 0:03:00.5]} 6. Nbd2 {[%clk 0:02:53.4]} 6... Bd6 {[%clk
0:03:00.5]} 7. Bg3 {[%clk 0:02:51]} 7... Qe7 {[%clk 0:03:00.5]} 8. Bb5 {[%clk
0:02:50.5]} 8... O-O {[%clk 0:02:57.6]} 9. O-O {[%clk 0:02:50.3]} 9... Bd7
{[%clk 0:02:54.2]} 10. Bxc6 {[%clk 0:02:47.4]} 10... bxc6 {[%clk 0:02:51.7]} 11.
Ne5 {[%clk 0:02:47]} 11... Rfb8 {[%clk 0:02:48.7]} 12. Qc2 {[%clk 0:02:44.6]}
12... cxd4 {[%clk 0:02:44.2]} 13. exd4 {[%clk 0:02:40.3]} 13... Rc8 {[%clk
0:02:40.5]} 14. b4 {[%clk 0:02:39.4]} 14... a5 {[%clk 0:02:33.6]} 15. a3 {[%clk
0:02:39.2]} 15... Be8 {[%clk 0:02:22.1]} 16. Bh4 {[%clk 0:02:34.1]} 16... h6
{[%clk 0:02:17.2]} 17. f4 {[%clk 0:02:31.2]} 17... Qd8 {[%clk 0:02:11.3]} 18.
Nb3 {[%clk 0:02:27.2]} 18... axb4 {[%clk 0:02:07.8]} 19. axb4 {[%clk 0:02:28.1]}
19... Be7 {[%clk 0:02:07.8]} 20. Nc5 {[%clk 0:02:24]} 20... Qb6 {[%clk
0:02:02.1]} 21. g4 {[%clk 0:02:18.7]} 21... Qc7 {[%clk 0:01:50.3]} 22. g5 {[%clk
0:02:16.8]} 22... hxg5 {[%clk 0:01:46.1]} 23. fxg5 {[%clk 0:02:15.6]} 23... Bxc5
{[%clk 0:01:17.9]} 24. gxf6 {[%clk 0:02:13.2]} 24... Rxa1 {[%clk 0:01:10.3]} 25.
Rxa1 {[%clk 0:02:10.4]} 25... Qxe5 {[%clk 0:01:09.6]} 26. bxc5 {[%clk
0:02:06.8]} 26... Qh5 {[%clk 0:00:44.7]} 27. Qg2 {[%clk 0:02:03.9]} 27... Qg6
{[%clk 0:00:43.4]} 28. Qxg6 {[%clk 0:01:58]} 28... fxg6 {[%clk 0:00:43.3]} 29.
Ra7 {[%clk 0:01:58.7]} 29... Bf7 {[%clk 0:00:40.1]} 30. Kf2 {[%clk 0:01:50.4]}
30... gxf6 {[%clk 0:00:26]} 31. Bxf6 {[%clk 0:01:50]} 31... Rb8 {[%clk
0:00:26.6]} 32. Be5 {[%clk 0:01:48.5]} 32... Rc8 {[%clk 0:00:23.4]} 33. Kg3
{[%clk 0:01:48.7]} 33... g5 {[%clk 0:00:10.6]} 34. Kg4 {[%clk 0:01:48.7]} 34...
Kf8 {[%clk 0:00:05.2]} 35. Kxg5 {[%clk 0:01:48.8]} 35... Be8 {[%clk 0:00:01.7]}
36. Kf6 {[%clk 0:01:47.9]} 36... Kg8 {[%clk 0:00:01.6]} 37. Rg7+ {[%clk
0:01:47]} 37... Kh8 {[%clk 0:00:01.9]} 38. Kxe6 {[%clk 0:01:47]} 38... Bh5
{[%clk 0:00:01]} 39. Rc7+ {[%clk 0:01:45.7]} 39... Kg8 {[%clk 0:00:01.8]} 40.
Rxc8+ {[%clk 0:01:45.5]} 40... Kh7 {[%clk 0:00:02.7]} 41. Rh8+ {[%clk
0:01:46.2]} 1-0

[Event "Early-Titled-Tuesday-Blitz-May-28-2024"]
[Site "Chess.com"]
[Date "2024.05.28"]
[Round "4"]
[White "MathiasWomacka"]
[Black "SimplyDevina"]
[Result "1-0"]
[WhiteElo "2520"]
[BlackElo "2307"]
[TimeControl "180+1"]
[EndTime "8:38:11 PDT"]
[Termination "MathiasWomacka won by resignation"]

1. e4 {[%clk 0:03:00.9]} 1... c6 {[%clk 0:02:59.3]} 2. d4 {[%clk 0:02:59.8]}
2... d5 {[%clk 0:02:58.4]} 3. Nd2 {[%clk 0:03:00.3]} 3... dxe4 {[%clk
0:02:57.6]} 4. Nxe4 {[%clk 0:03:01.1]} 4... Nf6 {[%clk 0:02:58.2]} 5. Nxf6+
{[%clk 0:03:00.7]} 5... exf6 {[%clk 0:02:59.1]} 6. Bc4 {[%clk 0:02:59.6]} 6...
Bd6 {[%clk 0:02:58.7]} 7. Qe2+ {[%clk 0:02:58.7]} 7... Qe7 {[%clk 0:02:56.8]} 8.
Qxe7+ {[%clk 0:02:58.1]} 8... Bxe7 {[%clk 0:02:56.7]} 9. Bf4 {[%clk 0:02:55.1]}
9... Nd7 {[%clk 0:02:51]} 10. Ne2 {[%clk 0:02:54.7]} 10... Nb6 {[%clk
0:02:50.9]} 11. Bd3 {[%clk 0:02:45.8]} 11... O-O {[%clk 0:02:50.2]} 12. O-O-O
{[%clk 0:02:44.5]} 12... Be6 {[%clk 0:02:49.3]} 13. b3 {[%clk 0:02:38.6]} 13...
a5 {[%clk 0:02:49.2]} 14. Bg3 {[%clk 0:02:36.8]} 14... a4 {[%clk 0:02:41.9]} 15.
Nf4 {[%clk 0:02:36.4]} 15... axb3 {[%clk 0:02:38.7]} 16. axb3 {[%clk 0:02:35.5]}
16... Bb4 {[%clk 0:02:29.2]} 17. Kb2 {[%clk 0:02:19.2]} 17... Ba3+ {[%clk
0:02:10.7]} 18. Kc3 {[%clk 0:02:19]} 18... Nd5+ {[%clk 0:01:51]} 19. Nxd5 {[%clk
0:02:17.1]} 19... Bxd5 {[%clk 0:01:41.5]} 20. f3 {[%clk 0:02:14.7]} 20... c5
{[%clk 0:01:32.5]} 21. dxc5 {[%clk 0:02:07.5]} 21... Be6 {[%clk 0:01:21.6]} 22.
Be4 {[%clk 0:01:50.8]} 22... Rac8 {[%clk 0:01:09.1]} 23. b4 {[%clk 0:01:43.1]}
23... b6 {[%clk 0:01:01.1]} 24. Ra1 {[%clk 0:01:33.2]} 24... bxc5 {[%clk
0:00:57.2]} 25. Rxa3 {[%clk 0:01:32.8]} 25... cxb4+ {[%clk 0:00:57.3]} 26. Kxb4
{[%clk 0:01:32.5]} 26... Rc4+ {[%clk 0:00:58]} 27. Kb5 {[%clk 0:01:31.7]} 27...
Rfc8 {[%clk 0:00:52.8]} 28. Rd1 {[%clk 0:01:20.5]} 28... f5 {[%clk 0:00:50.4]}
29. Bb7 {[%clk 0:01:13.3]} 29... R8c5+ {[%clk 0:00:47.7]} 30. Kb6 {[%clk
0:01:13.1]} 30... g5 {[%clk 0:00:40.2]} 31. Bd6 {[%clk 0:01:03.6]} 1-0

[Event "Early-Titled-Tuesday-Blitz-May-28-2024"]
[Site "Chess.com"]
[Date "2024.05.28"]
[Round "4"]
[White "edgarhay012"]
[Black "Budag-Leyla"]
[Result "1-0"]
[WhiteElo "2615"]
[BlackElo "1948"]
[TimeControl "180+1"]
[EndTime "8:38:14 PDT"]
[Termination "edgarhay012 won by resignation"]

1. e4 {[%clk 0:03:00.9]} 1... d5 {[%clk 0:02:59]} 2. exd5 {[%clk 0:03:00.5]}
2... Nf6 {[%clk 0:02:59.6]} 3. Nf3 {[%clk 0:02:59.9]} 3... Nxd5 {[%clk
0:02:59.8]} 4. d4 {[%clk 0:02:59.7]} 4... Bg4 {[%clk 0:03:00.3]} 5. c3 {[%clk
0:02:58.3]} 5... e6 {[%clk 0:02:59.8]} 6. Be2 {[%clk 0:02:58.3]} 6... Nc6 {[%clk
0:03:00.4]} 7. O-O {[%clk 0:02:58]} 7... Be7 {[%clk 0:03:01.1]} 8. Nbd2 {[%clk
0:02:57.7]} 8... O-O {[%clk 0:03:00.4]} 9. Ne4 {[%clk 0:02:57.7]} 9... h6 {[%clk
0:02:59.2]} 10. Ng3 {[%clk 0:02:55.3]} 10... Bd6 {[%clk 0:02:57.3]} 11. h3
{[%clk 0:02:53.3]} 11... Bxg3 {[%clk 0:02:57.1]} 12. fxg3 {[%clk 0:02:54.2]}
12... Bh5 {[%clk 0:02:57.4]} 13. Bd3 {[%clk 0:02:47.5]} 13... e5 {[%clk
0:02:54.7]} 14. g4 {[%clk 0:02:46.1]} 14... Bg6 {[%clk 0:02:52.3]} 15. Bxg6
{[%clk 0:02:23.9]} 15... fxg6 {[%clk 0:02:51.9]} 16. dxe5 {[%clk 0:02:23.9]}
16... Kh7 {[%clk 0:02:46.4]} 17. a4 {[%clk 0:01:49]} 17... Qd7 {[%clk
0:02:45.5]} 18. Qc2 {[%clk 0:01:41.9]} 18... Rae8 {[%clk 0:02:43.4]} 19. Re1
{[%clk 0:01:39.5]} 19... Rxf3 {[%clk 0:02:38.2]} 20. gxf3 {[%clk 0:01:40.4]}
20... Nxe5 {[%clk 0:02:38.8]} 21. Kg2 {[%clk 0:01:38.6]} 21... Qf7 {[%clk
0:02:17.7]} 22. f4 {[%clk 0:01:12]} 22... Nxf4+ {[%clk 0:01:59.4]} 23. Bxf4
{[%clk 0:01:11.2]} 23... Qxf4 {[%clk 0:02:00.1]} 24. Qe4 {[%clk 0:01:10.9]}
24... Qd2+ {[%clk 0:01:56.2]} 25. Re2 {[%clk 0:01:09.8]} 25... Qd6 {[%clk
0:01:56.8]} 26. Rae1 {[%clk 0:01:03.7]} 26... Re7 {[%clk 0:01:57.2]} 27. Qd4
{[%clk 0:00:24.2]} 27... Qc6+ {[%clk 0:01:56.6]} 28. Qe4 {[%clk 0:00:22.1]}
28... Qd6 {[%clk 0:01:50.2]} 29. Qxb7 {[%clk 0:00:18.2]} 29... c6 {[%clk
0:01:43.2]} 30. Qb4 {[%clk 0:00:18]} 30... c5 {[%clk 0:01:40.7]} 31. Qe4 {[%clk
0:00:17.9]} 31... Nc6 {[%clk 0:01:40.6]} 32. Qf3 {[%clk 0:00:18.1]} 32... Rd7
{[%clk 0:01:38.1]} 33. Re6 {[%clk 0:00:16.3]} 33... Qd2+ {[%clk 0:01:36.2]} 34.
R1e2 {[%clk 0:00:16.6]} 34... Qd1 {[%clk 0:01:36.6]} 35. Qxc6 {[%clk 0:00:14.7]}
35... Rf7 {[%clk 0:01:36.1]} 36. Rf2 {[%clk 0:00:12.1]} 36... Rd7 {[%clk
0:01:36]} 37. Qe4 {[%clk 0:00:10.4]} 1-0

[Event "Early-Titled-Tuesday-Blitz-May-28-2024"]
[Site "Chess.com"]
[Date "2024.05.28"]
[Round "4"]
[White "BashiqChess"]
[Black "Szachulec75"]
[Result "1-0"]
[WhiteElo "2411"]
[BlackElo "2170"]
[TimeControl "180+1"]
[EndTime "8:38:14 PDT"]
[Termination "BashiqChess won by resignation"]

1. a3 {[%clk 0:03:00.9]} 1... g6 {[%clk 0:02:53.8]} 2. d4 {[%clk 0:02:57.5]}
2... Bg7 {[%clk 0:02:54.1]} 3. Nf3 {[%clk 0:02:56.4]} 3... d6 {[%clk 0:02:54.2]}
4. g3 {[%clk 0:02:53.7]} 4... Nf6 {[%clk 0:02:40.8]} 5. Bg2 {[%clk 0:02:52.9]}
5... O-O {[%clk 0:02:40.9]} 6. O-O {[%clk 0:02:52.8]} 6... Nbd7 {[%clk
0:02:41.3]} 7. b4 {[%clk 0:02:50.5]} 7... e5 {[%clk 0:02:40.9]} 8. dxe5 {[%clk
0:02:44.1]} 8... Ng4 {[%clk 0:02:35.5]} 9. Bb2 {[%clk 0:02:42.5]} 9... Ngxe5
{[%clk 0:02:34]} 10. Nxe5 {[%clk 0:02:42]} 10... Nxe5 {[%clk 0:02:34.5]} 11. Qc1
{[%clk 0:02:31.1]} 11... c6 {[%clk 0:02:32.8]} 12. c4 {[%clk 0:02:29.7]} 12...
Bg4 {[%clk 0:02:25.5]} 13. Re1 {[%clk 0:02:21.4]} 13... Re8 {[%clk 0:02:24.1]}
14. h3 {[%clk 0:02:21.2]} 14... Be6 {[%clk 0:02:23.4]} 15. Nd2 {[%clk
0:02:20.8]} 15... d5 {[%clk 0:02:21.5]} 16. c5 {[%clk 0:02:08.6]} 16... h5
{[%clk 0:01:53.8]} 17. f4 {[%clk 0:02:07.7]} 17... Nd7 {[%clk 0:01:51.8]} 18.
Bxg7 {[%clk 0:02:05.3]} 18... Kxg7 {[%clk 0:01:52.3]} 19. e4 {[%clk 0:02:05]}
19... dxe4 {[%clk 0:01:48]} 20. Nxe4 {[%clk 0:02:05]} 20... Bd5 {[%clk
0:01:44.2]} 21. Qc3+ {[%clk 0:02:01.8]} 21... Kg8 {[%clk 0:01:44.1]} 22. Rad1
{[%clk 0:01:56.6]} 22... Qc7 {[%clk 0:01:36.7]} 23. Nd6 {[%clk 0:01:51.3]} 23...
Rxe1+ {[%clk 0:01:35.5]} 24. Rxe1 {[%clk 0:01:52.2]} 24... Bxg2 {[%clk
0:01:32.6]} 25. Kxg2 {[%clk 0:01:52.4]} 25... b6 {[%clk 0:01:17.2]} 26. Re7
{[%clk 0:01:42.9]} 26... Rf8 {[%clk 0:01:10.4]} 27. Ne4 {[%clk 0:01:40.2]} 27...
Rd8 {[%clk 0:00:50.5]} 28. Ng5 {[%clk 0:01:02.2]} 28... Rf8 {[%clk 0:00:45.1]}
29. Qd4 {[%clk 0:00:50.6]} 1-0

[Event "Early-Titled-Tuesday-Blitz-May-28-2024"]
[Site "Chess.com"]
[Date "2024.05.28"]
[Round "4"]
[White "Kezin_Roman"]
[Black "Manukyan_Artak"]
[Result "0-1"]
[WhiteElo "2771"]
[BlackElo "2572"]
[TimeControl "180+1"]
[EndTime "8:38:15 PDT"]
[Termination "Manukyan_Artak won by resignation"]

1. d4 {[%clk 0:03:00.2]} 1... d5 {[%clk 0:02:55.5]} 2. c4 {[%clk 0:03:00.5]}
2... dxc4 {[%clk 0:02:55.8]} 3. e3 {[%clk 0:03:00.7]} 3... e5 {[%clk 0:02:55.9]}
4. Bxc4 {[%clk 0:03:01.2]} 4... exd4 {[%clk 0:02:56.8]} 5. exd4 {[%clk
0:03:00.9]} 5... Nf6 {[%clk 0:02:57.2]} 6. Qf3 {[%clk 0:02:58.9]} 6... Qxd4
{[%clk 0:02:50.4]} 7. Bb3 {[%clk 0:02:53]} 7... Bg4 {[%clk 0:02:44.2]} 8. Qxb7
{[%clk 0:02:49.3]} 8... Bb4+ {[%clk 0:02:41.2]} 9. Bd2 {[%clk 0:02:45.5]} 9...
Ne4 {[%clk 0:02:03]} 10. Ba4+ {[%clk 0:02:05.3]} 10... Kd8 {[%clk 0:01:40.5]}
11. Nf3 {[%clk 0:01:30.9]} 11... Qxf2+ {[%clk 0:01:22.8]} 12. Kd1 {[%clk
0:01:31.1]} 12... Qxg2 {[%clk 0:01:22.7]} 13. Qd5+ {[%clk 0:01:15.4]} 13... Kc8
{[%clk 0:01:18.5]} 14. Bd7+ {[%clk 0:01:12.3]} 14... Bxd7 {[%clk 0:01:10.5]} 15.
Qxe4 {[%clk 0:01:12.3]} 15... Qxh1+ {[%clk 0:01:06.6]} 16. Kc2 {[%clk
0:01:12.5]} 16... Nc6 {[%clk 0:01:00.4]} 17. Nc3 {[%clk 0:00:59.9]} 17... Qxa1
{[%clk 0:00:56]} 18. Nd5 {[%clk 0:01:00.1]} 18... Bxd2 {[%clk 0:00:48.2]} 19.
Ne7+ {[%clk 0:01:00.3]} 19... Kb7 {[%clk 0:00:48.6]} 20. Ne5 {[%clk 0:00:54.1]}
20... Qc1+ {[%clk 0:00:47.3]} 21. Kb3 {[%clk 0:00:54.6]} 21... Rhe8 {[%clk
0:00:34.6]} 0-1

[Event "Early-Titled-Tuesday-Blitz-May-28-2024"]
[Site "Chess.com"]
[Date "2024.05.28"]
[Round "4"]
[White "Yan_Dyomin2010"]
[Black "janhelmer03"]
[Result "1/2-1/2"]
[WhiteElo "2595"]
[BlackElo "2412"]
[TimeControl "180+1"]
[EndTime "8:38:16 PDT"]
[Termination "Game drawn by agreement"]

1. e4 {[%clk 0:03:00.9]} 1... c5 {[%clk 0:02:56.1]} 2. Nf3 {[%clk 0:02:59.6]}
2... d6 {[%clk 0:02:55]} 3. d4 {[%clk 0:02:59.4]} 3... cxd4 {[%clk 0:02:55.6]}
4. Nxd4 {[%clk 0:03:00.2]} 4... Nf6 {[%clk 0:02:56.2]} 5. Nc3 {[%clk 0:03:00.1]}
5... g6 {[%clk 0:02:54.9]} 6. Be3 {[%clk 0:02:58.9]} 6... Bg7 {[%clk 0:02:55.5]}
7. f3 {[%clk 0:02:59]} 7... O-O {[%clk 0:02:55]} 8. Qd2 {[%clk 0:02:59.1]} 8...
Nc6 {[%clk 0:02:51]} 9. O-O-O {[%clk 0:02:59.5]} 9... d5 {[%clk 0:02:45.2]} 10.
exd5 {[%clk 0:02:59]} 10... Nxd5 {[%clk 0:02:44.6]} 11. Nxc6 {[%clk 0:02:59.9]}
11... bxc6 {[%clk 0:02:40]} 12. Bd4 {[%clk 0:02:59.9]} 12... e5 {[%clk
0:02:39.5]} 13. Bc5 {[%clk 0:03:00.1]} 13... Re8 {[%clk 0:02:39.9]} 14. Ne4
{[%clk 0:02:58.8]} 14... Qc7 {[%clk 0:02:26.2]} 15. h4 {[%clk 0:02:56.2]} 15...
f5 {[%clk 0:02:25.9]} 16. Nd6 {[%clk 0:02:54.4]} 16... Rd8 {[%clk 0:02:26]} 17.
Nxc8 {[%clk 0:02:54.7]} 17... Raxc8 {[%clk 0:02:25.9]} 18. h5 {[%clk 0:02:55]}
18... Nb6 {[%clk 0:02:22.7]} 19. Bxb6 {[%clk 0:02:54]} 19... Rxd2 {[%clk
0:02:12.9]} 20. Bc4+ {[%clk 0:02:54.2]} 20... Kf8 {[%clk 0:01:29.5]} 21. Bxc7
{[%clk 0:02:53.1]} 21... Rxd1+ {[%clk 0:01:30.1]} 22. Rxd1 {[%clk 0:02:53.1]}
22... Rxc7 {[%clk 0:01:30.8]} 23. hxg6 {[%clk 0:02:53.3]} 23... hxg6 {[%clk
0:01:31.5]} 24. Rd6 {[%clk 0:02:50.5]} 24... Bh6+ {[%clk 0:01:31.8]} 25. Kd1
{[%clk 0:02:50.3]} 25... Kg7 {[%clk 0:01:31.3]} 26. b4 {[%clk 0:02:43.8]} 26...
Bf4 {[%clk 0:01:25.5]} 27. Rd8 {[%clk 0:02:43.8]} 27... Kf6 {[%clk 0:01:20]} 28.
c3 {[%clk 0:02:40.2]} 28... Kg5 {[%clk 0:01:15.5]} 29. Ke2 {[%clk 0:02:35.1]}
29... Rh7 {[%clk 0:01:04.8]} 30. Kf2 {[%clk 0:02:27.7]} 30... Rh1 {[%clk
0:00:59.6]} 31. Bf1 {[%clk 0:02:27.2]} 31... e4 {[%clk 0:00:56.9]} 32. fxe4
{[%clk 0:02:26.2]} 32... fxe4 {[%clk 0:00:57.3]} 33. Rd7 {[%clk 0:02:25.4]}
33... e3+ {[%clk 0:00:55.3]} 34. Ke2 {[%clk 0:02:25.2]} 34... Rh8 {[%clk
0:00:49.2]} 35. Kf3 {[%clk 0:02:06.7]} 35... Rf8 {[%clk 0:00:46.5]} 36. Bd3
{[%clk 0:02:01]} 36... Be5+ {[%clk 0:00:33.1]} 37. Kxe3 {[%clk 0:01:59.3]} 37...
Bxc3 {[%clk 0:00:33.4]} 38. Rd6 {[%clk 0:01:52.2]} 38... Rf6 {[%clk 0:00:29.6]}
39. Rxf6 {[%clk 0:01:42.8]} 39... Kxf6 {[%clk 0:00:29]} 40. a3 {[%clk
0:01:41.9]} 40... Bb2 {[%clk 0:00:29.5]} 41. a4 {[%clk 0:01:41.9]} 41... Bc3
{[%clk 0:00:29.9]} 42. b5 {[%clk 0:01:42.2]} 42... cxb5 {[%clk 0:00:30.2]} 43.
Bxb5 {[%clk 0:01:42.3]} 43... a5 {[%clk 0:00:25.2]} 44. Ke4 {[%clk 0:01:41.8]}
44... Bb4 {[%clk 0:00:23.4]} 45. Bd7 {[%clk 0:01:40.7]} 45... g5 {[%clk
0:00:23.3]} 46. Bg4 {[%clk 0:01:39.5]} 46... Be1 {[%clk 0:00:23.7]} 1/2-1/2

[Event "Early-Titled-Tuesday-Blitz-May-28-2024"]
[Site "Chess.com"]
[Date "2024.05.28"]
[Round "4"]
[White "Connectedcloud"]
[Black "Dexter_Dyke"]
[Result "0-1"]
[WhiteElo "2194"]
[BlackElo "2449"]
[TimeControl "180+1"]
[EndTime "8:38:28 PDT"]
[Termination "Dexter_Dyke won by checkmate"]

1. Nf3 {[%clk 0:02:59.3]} 1... Nf6 {[%clk 0:02:59.8]} 2. e3 {[%clk 0:02:58.2]}
2... g6 {[%clk 0:03:00.4]} 3. c4 {[%clk 0:02:58]} 3... Bg7 {[%clk 0:03:01]} 4.
Nc3 {[%clk 0:02:58.8]} 4... O-O {[%clk 0:03:01.2]} 5. d4 {[%clk 0:02:59.3]} 5...
d6 {[%clk 0:03:01.5]} 6. Be2 {[%clk 0:03:00.1]} 6... Nc6 {[%clk 0:03:00.1]} 7.
O-O {[%clk 0:03:00.8]} 7... e5 {[%clk 0:03:00.4]} 8. d5 {[%clk 0:02:57.7]} 8...
Ne7 {[%clk 0:03:00.4]} 9. e4 {[%clk 0:02:57.8]} 9... Nd7 {[%clk 0:03:00.5]} 10.
b4 {[%clk 0:02:52.7]} 10... a5 {[%clk 0:02:57.8]} 11. bxa5 {[%clk 0:02:52.4]}
11... Rxa5 {[%clk 0:02:57.8]} 12. a4 {[%clk 0:02:52.7]} 12... Ra8 {[%clk
0:02:57.8]} 13. Be3 {[%clk 0:02:35.9]} 13... h6 {[%clk 0:02:56.5]} 14. Ra3
{[%clk 0:02:11.7]} 14... f5 {[%clk 0:02:55.7]} 15. exf5 {[%clk 0:02:12.3]} 15...
gxf5 {[%clk 0:02:55.5]} 16. Qc2 {[%clk 0:02:01.7]} 16... f4 {[%clk 0:02:46.1]}
17. Bc1 {[%clk 0:01:59.1]} 17... Nc5 {[%clk 0:02:46.7]} 18. Nd2 {[%clk 0:01:49]}
18... Bf5 {[%clk 0:02:43.8]} 19. Nde4 {[%clk 0:01:48.1]} 19... Ng6 {[%clk
0:02:28.4]} 20. f3 {[%clk 0:01:35.8]} 20... Kh8 {[%clk 0:02:23.6]} 21. Qb2
{[%clk 0:01:32.4]} 21... b6 {[%clk 0:02:19.7]} 22. Nxc5 {[%clk 0:01:20.5]} 22...
dxc5 {[%clk 0:02:00.5]} 23. a5 {[%clk 0:01:20.2]} 23... bxa5 {[%clk 0:01:45.9]}
24. Kh1 {[%clk 0:01:05.6]} 24... e4 {[%clk 0:01:44]} 25. fxe4 {[%clk 0:00:59.9]}
25... Bxe4 {[%clk 0:01:42.9]} 26. Qd2 {[%clk 0:00:58.7]} 26... Bf5 {[%clk
0:01:40]} 27. Bd3 {[%clk 0:00:56.4]} 27... Qg5 {[%clk 0:01:34.8]} 28. Bxf5
{[%clk 0:00:55]} 28... Rxf5 {[%clk 0:01:34.9]} 29. Ne4 {[%clk 0:00:52.4]} 29...
Qe7 {[%clk 0:01:31.5]} 30. Qd3 {[%clk 0:00:40.8]} 30... Re5 {[%clk 0:01:21.1]}
31. Nd2 {[%clk 0:00:40.1]} 31... Nh4 {[%clk 0:01:12.2]} 32. Bb2 {[%clk
0:00:34.6]} 32... Re3 {[%clk 0:01:07.7]} 33. Qc2 {[%clk 0:00:28.8]} 33... Rg8
{[%clk 0:01:00.9]} 34. Bxg7+ {[%clk 0:00:19.1]} 34... Qxg7 {[%clk 0:01:00.7]}
35. Rxe3 {[%clk 0:00:18]} 35... Qxg2# {[%clk 0:01:00.3]} 0-1

[Event "Early-Titled-Tuesday-Blitz-May-28-2024"]
[Site "Chess.com"]
[Date "2024.05.28"]
[Round "4"]
[White "Malev212"]
[Black "Louis-Paulsen-Fan"]
[Result "1-0"]
[WhiteElo "2630"]
[BlackElo "2308"]
[TimeControl "180+1"]
[EndTime "8:38:31 PDT"]
[Termination "Malev212 won on time"]

1. e4 {[%clk 0:02:52.1]} 1... Nf6 {[%clk 0:02:59.5]} 2. e5 {[%clk 0:02:51.1]}
2... Nd5 {[%clk 0:02:59.8]} 3. d4 {[%clk 0:02:51.2]} 3... d6 {[%clk 0:03:00]} 4.
Nf3 {[%clk 0:02:51]} 4... g6 {[%clk 0:02:59.9]} 5. Bc4 {[%clk 0:02:49.9]} 5...
Nb6 {[%clk 0:03:00.1]} 6. Bb3 {[%clk 0:02:49.6]} 6... Bg7 {[%clk 0:03:00.8]} 7.
Ng5 {[%clk 0:02:49.5]} 7... d5 {[%clk 0:03:01.2]} 8. f4 {[%clk 0:02:48.8]} 8...
O-O {[%clk 0:03:01.3]} 9. c3 {[%clk 0:02:46.3]} 9... f6 {[%clk 0:03:00.9]} 10.
Nf3 {[%clk 0:02:45.7]} 10... Be6 {[%clk 0:03:00.5]} 11. Be3 {[%clk 0:02:45]}
11... Na6 {[%clk 0:03:00.3]} 12. Nbd2 {[%clk 0:02:45]} 12... Rc8 {[%clk
0:03:00.5]} 13. h4 {[%clk 0:02:34.5]} 13... c5 {[%clk 0:02:42.4]} 14. h5 {[%clk
0:02:09]} 14... cxd4 {[%clk 0:02:36.2]} 15. Nxd4 {[%clk 0:02:07.7]} 15... Qd7
{[%clk 0:02:35.2]} 16. hxg6 {[%clk 0:02:06.8]} 16... hxg6 {[%clk 0:02:34.8]} 17.
exf6 {[%clk 0:02:03.2]} 17... exf6 {[%clk 0:02:32.3]} 18. Bc2 {[%clk 0:02:01.9]}
18... f5 {[%clk 0:02:21.8]} 19. Qf3 {[%clk 0:01:57.6]} 19... Nc5 {[%clk
0:02:03.9]} 20. O-O-O {[%clk 0:01:42.3]} 20... Ne4 {[%clk 0:01:54.9]} 21. g4
{[%clk 0:01:41.2]} 21... fxg4 {[%clk 0:01:41.6]} 22. Qg2 {[%clk 0:01:40]} 22...
Bf5 {[%clk 0:01:35.7]} 23. Nxe4 {[%clk 0:01:32.3]} 23... Bxe4 {[%clk 0:01:26.9]}
24. Bxe4 {[%clk 0:01:31.1]} 24... dxe4 {[%clk 0:01:27.1]} 25. f5 {[%clk
0:01:25.9]} 25... gxf5 {[%clk 0:01:20.6]} 26. Qh2 {[%clk 0:01:25.6]} 26... Nd5
{[%clk 0:01:10.4]} 27. Qh7+ {[%clk 0:01:22.5]} 27... Kf7 {[%clk 0:01:10.7]} 28.
Nxf5 {[%clk 0:01:22.2]} 28... Rg8 {[%clk 0:00:09]} 29. Nh6+ {[%clk 0:01:18.1]}
29... Ke6 {[%clk 0:00:06.5]} 30. Qf5+ {[%clk 0:01:13.7]} 30... Ke7 {[%clk
0:00:02.1]} 31. Qf7+ {[%clk 0:01:09.2]} 1-0